bitfinex/quotes_ETHUSD_20250319
["timestamp","ask_amount","ask_price","bid_price","bid_amount"]
[1742392655543,4.58757712,2024.7,2024.4,4.93968]
[1742392655739,4.58757712,2024.7,2024.3,5.24933]
[1742392655740,9.52659712,2024.7,2024.3,5.24933]
[1742392656049,4.58757712,2024.5,2024.3,4.93993]
[1742392656254,4.93993,2024.4,2024.1,3.0]
[1742392656459,4.58757712,2024.3,2024.1,3.0]
[1742392657757,4.58757712,2024.3,2024.0,9.88114]
[1742392657758,9.52767712,2024.3,2024.0,3.0]
[1742392657957,4.58757712,2024.1,2024.0,3.0]
[1742392658159,5.36727712,2024.1,2023.8,9.88214]
[1742392658461,5.36727712,2024.1,2023.8,9.88212]
[1742392658624,5.36727712,2024.1,2023.8,4.94106]
[1742392658825,10.30785712,2024.1,2023.8,4.94105]
[1742392659032,4.58757712,2023.9,2023.6,4.94149]
[1742392659260,4.58757712,2023.7,2023.6,4.94149]
[1742392659461,4.58757712,2023.7,2023.6,7.94149]
[1742392659759,10.29031712,2023.7,2023.3,10.19403]
[1742392659959,4.58757712,2023.5,2023.3,4.9423]
[1742392660139,4.58757712,2023.5,2023.4,3.0]
[1742392660651,4.94231,2023.4,2023.1,4.9428]
[1742392660958,4.58757712,2023.5,2023.4,4.94217]
[1742392661742,4.58757712,2023.5,2023.3,4.94232]
[1742392661943,4.58757712,2023.5,2023.4,4.94217]
[1742392662252,4.58757712,2023.5,2023.2,4.94258]
[1742392662447,5.12245483,2023.5,2023.2,4.94258]
[1742392662632,5.12245483,2023.5,2023.3,4.94241]
[1742392662838,5.12245483,2023.5,2023.2,4.94265]
[1742392663059,5.12245483,2023.5,2023.3,4.94239]
[1742392663242,4.58757712,2023.5,2023.3,4.94239]
[1742392663443,5.70265,2023.7,2023.3,9.88463]
[1742392663652,4.58757712,2023.5,2023.3,4.94224]
[1742392663874,4.58757712,2023.7,2023.5,4.94172]
[1742392664259,4.58757712,2023.9,2023.7,4.9412]
[1742392664461,5.54039883,2023.9,2023.6,4.94162]
[1742392664668,5.54039883,2023.9,2023.3,0.3094]
[1742392664669,4.58757712,2023.7,2023.5,4.94187]
[1742392664974,4.58757712,2023.7,2023.6,4.94168]
[1742392665267,4.58757712,2023.7,2023.5,4.94175]
[1742392666374,5.75245,2023.6,2023.2,4.9426]
[1742392666571,4.58757712,2023.3,2023.2,4.9426]
[1742392666745,4.58757712,2023.3,2023.2,7.9426]
[1742392666946,4.58757712,2023.3,2023.2,4.9426]
[1742392667176,4.58757712,2023.3,2023.2,7.9426]
[1742392667372,4.58757712,2023.3,2023.2,3.0]
[1742392667543,5.54053683,2023.3,2023.1,4.94289]
[1742392667869,6.78646271,2023.6,2023.2,4.94258]
[1742392668182,4.58757712,2023.4,2023.2,4.94254]
[1742392668481,4.58757712,2023.8,2023.3,0.3094]
[1742392668671,4.58757712,2023.6,2023.3,4.9423]
[1742392668875,4.58757712,2023.6,2023.4,4.94207]
[1742392669055,4.58757712,2023.6,2023.3,4.94235]
[1742392669256,4.58757712,2023.4,2023.3,4.94235]
[1742392669665,4.58757712,2023.4,2023.3,4.2016698]
[1742392670076,4.58757712,2023.4,2023.2,4.94258]
[1742392670276,4.58757712,2023.4,2023.2,4.94251]
[1742392670574,6.03464583,2023.6,2023.3,9.88453]
[1742392670752,6.03464583,2023.6,2023.3,4.94223]
[1742392670952,6.03464583,2023.6,2023.1,4.94287]
[1742392671153,4.58757712,2023.6,2023.5,4.94193]
[1742392671550,7.25112171,2023.9,2023.5,4.94193]
[1742392671551,4.58757712,2023.8,2023.5,4.94193]
[1742392671971,4.58757712,2023.6,2023.4,4.94216]
[1742392672177,4.58757712,2023.6,2023.3,4.94239]
[1742392672353,4.58757712,2023.4,2023.3,4.94239]
[1742392672554,4.58757712,2023.6,2023.3,9.88471]
[1742392672750,6.03462783,2023.6,2023.3,9.8846]
[1742392672950,6.03462783,2023.6,2023.3,4.94228]
[1742392673180,6.03462783,2023.6,2023.3,4.94224]
[1742392673366,6.03462783,2023.6,2023.4,4.94208]
[1742392673875,10.97641783,2023.6,2023.2,9.8851]
[1742392674082,6.03462783,2023.6,2023.3,4.94229]
[1742392674385,4.58757712,2023.4,2023.1,4.94283]
[1742392674679,4.94242,2023.3,2022.9,4.94337]
[1742392674897,4.58757712,2023.0,2022.6,4.94388]
[1742392675057,5.75989,2023.1,2022.6,4.94388]
[1742392675058,1.03474671,2022.9,2022.6,4.94388]
[1742392675261,5.75971,2023.1,2022.7,9.88747]
[1742392675458,5.75971,2023.1,2022.7,4.94372]
[1742392675669,5.75971,2023.1,2022.7,9.88746]
[1742392675869,5.75971,2023.1,2022.7,4.94372]
[1742392676070,4.94326,2023.0,2022.6,4.9441]
[1742392676275,4.58757712,2022.8,2022.6,4.9441]
[1742392676450,4.58757712,2022.8,2022.6,9.88807]
[1742392676651,4.58757712,2023.0,2022.8,4.94346]
[1742392676861,4.58757712,2023.0,2022.9,4.94339]
[1742392677061,5.16535824,2023.0,2022.8,4.94346]
[1742392677484,5.16535824,2023.0,2022.3,0.3094]
[1742392677784,5.16535824,2023.0,2022.5,4.94433]
[1742392677785,4.58757712,2022.6,2022.5,4.94433]
[1742392678171,5.40547712,2022.6,2022.4,9.88906]
[1742392678370,5.40547712,2022.6,2022.0,0.3094]
[1742392678371,5.40547712,2022.6,2022.3,9.88968]
[1742392678559,4.58757712,2022.4,2022.3,9.88968]
[1742392678752,4.58757712,2022.4,2022.3,4.94484]
[1742392679189,0.54054771,2022.5,2022.4,4.94462]
[1742392679387,5.40547712,2022.6,2022.4,9.88911]
[1742392679582,5.40547712,2022.6,2022.5,4.94437]
[1742392679771,4.94365,2022.8,2022.6,4.94406]
[1742392679772,4.58757712,2022.8,2022.6,4.94406]
[1742392679957,4.58757712,2022.8,2022.6,4.94398]
[1742392680779,4.58757712,2022.8,2022.5,4.9442]
[1742392680988,4.58757712,2022.8,2022.4,0.3094]
[1742392680989,4.58757712,2022.8,2022.7,4.94388]
[1742392681184,22.43887712,2023.1,2022.9,4.94339]
[1742392681388,24.73580459,2023.1,2022.9,4.94339]
[1742392681684,24.73580459,2023.1,2022.9,4.94327]
[1742392681992,4.58757712,2023.1,2022.9,4.94329]
[1742392682159,4.58757712,2023.1,2022.8,4.94361]
[1742392682489,4.58757712,2022.9,2022.8,4.94361]
[1742392682989,9.53106712,2022.9,2022.5,4.94435]
[1742392683308,4.58757712,2022.6,2022.5,7.94435]
[1742392683588,0.8032,2023.1,2022.5,3.0]
[1742392683760,4.58757712,2022.9,2022.7,4.94376]
[1742392683956,4.58757712,2022.9,2022.6,4.94405]
[1742392684290,4.58757712,2022.7,2022.5,7.94435]
[1742392684790,5.38157712,2022.7,2022.5,3.0]
[1742392684977,5.38157712,2022.7,2022.6,4.94413]
[1742392685361,5.38157712,2022.7,2022.5,7.94432]
[1742392685758,5.38157712,2022.7,2022.5,3.0]
[1742392685962,5.38157712,2022.7,2022.5,7.94415]
[1742392686198,5.38337712,2022.9,2022.7,4.94388]
[1742392686362,4.58757712,2022.9,2022.8,4.94364]
[1742392687078,4.58757712,2022.9,2022.7,4.94388]
[1742392687365,5.68811279,2022.9,2022.5,7.94426]
[1742392687559,4.58757712,2022.7,2022.5,7.94426]
[1742392687821,4.58757712,2022.7,2022.5,7.94424]
[1742392688158,4.58757712,2022.7,2022.6,4.94413]
[1742392689574,5.68811279,2022.9,2022.8,4.94364]
[1742392689774,3.979916,2022.8,2022.7,9.88762]
[1742392689995,5.68811279,2022.9,2022.7,9.88762]
[1742392690194,5.68811279,2022.9,2022.7,4.94375]
[1742392690403,5.68811279,2022.9,2022.8,4.94364]
[1742392690699,4.58757712,2022.9,2022.8,4.94364]
[1742392692325,4.58757712,2023.1,2022.9,4.94326]
[1742392692598,4.58757712,2023.1,2022.9,4.94323]
[1742392692765,4.58757712,2023.1,2023.0,4.94315]
[1742392693197,4.58757712,2023.4,2023.2,4.94266]
[1742392693366,5.14715682,2023.4,2023.2,4.94266]
[1742392693570,4.58757712,2023.5,2023.4,4.94217]
[1742392694596,9.52960712,2023.5,2023.1,4.94274]
[1742392694801,4.58757712,2023.2,2023.0,3.0]
[1742392694996,4.943,2023.1,2022.8,3.0]
[1742392695196,4.58757712,2023.0,2022.7,4.94374]
[1742392695385,4.58757712,2022.8,2022.7,7.94374]
[1742392695564,4.58757712,2022.8,2022.7,3.0]
[1742392695769,4.58757712,2022.8,2022.6,4.94396]
[1742392696194,4.58757712,2022.8,2022.5,9.88861]
[1742392696403,4.58757712,2022.6,2022.5,4.94426]
[1742392698006,4.58757712,2022.6,2022.4,10.43256]
[1742392698206,5.04633483,2022.6,2022.4,4.94461]
[1742392698403,5.04633483,2022.6,2022.2,0.3094]
[1742392698585,4.58757712,2022.4,2022.2,4.94488]
[1742392698779,4.58757712,2022.4,2022.3,4.94486]
[1742392699822,4.58757712,2022.4,2022.2,5.25428]
[1742392699971,4.94487,2022.3,2021.9,4.94583]
[1742392700171,4.58757712,2022.1,2022.0,4.94559]
[1742392700399,4.58757712,2022.1,2021.8,5.25541]
[1742392700621,0.819,2021.8,2021.5,4.94669]
[1742392700919,4.58757712,2021.6,2021.4,4.94699]
[1742392701125,0.819,2021.8,2021.4,4.94699]
[1742392701126,4.58757712,2021.5,2021.4,4.94699]
[1742392701481,4.58757712,2021.5,2021.3,5.25656]
[1742392701677,4.94732,2021.3,2020.9,4.94816]
[1742392701909,4.58757712,2021.0,2020.9,4.94808]
[1742392702210,4.58757712,2021.0,2020.8,4.94845]
[1742392702426,4.58757712,2021.0,2020.8,9.8968]
[1742392702623,4.58757712,2021.0,2020.8,4.94835]
[1742392702974,5.04633483,2021.0,2020.6,5.2583]
[1742392703213,4.58757712,2020.7,2020.6,5.2583]
[1742392703409,4.58757712,2020.9,2020.8,4.94847]
[1742392703701,4.58757712,2020.9,2020.5,5.25844]
[1742392703880,4.58757712,2020.6,2020.5,5.25844]
[1742392704072,4.58757712,2020.8,2020.7,4.94878]
[1742392704505,4.58757712,2020.8,2020.7,7.94878]
[1742392704689,4.58757712,2021.0,2020.9,4.9482]
[1742392706375,4.58757712,2021.2,2021.1,4.94756]
[1742392707490,4.58757712,2021.2,2021.1,7.94756]
[1742392708086,4.58757712,2021.2,2021.1,7.93706138]
[1742392709924,4.58757712,2021.4,2021.3,4.94731]
[1742392710209,4.58757712,2021.8,2021.7,4.94633]
[1742392710413,4.94643,2021.7,2021.3,4.94719]
[1742392710580,4.58757712,2021.4,2021.2,4.94744]
[1742392710782,4.58757712,2021.3,2021.2,4.94744]
[1742392711414,4.58757712,2021.3,2021.2,4.94755]
[1742392712132,4.58757712,2021.3,2021.1,4.94764]
[1742392712278,4.58757712,2021.3,2021.0,4.94798]
[1742392712484,4.58757712,2021.1,2021.0,4.94798]
[1742392712680,4.94691,2021.5,2021.1,4.94772]
[1742392712931,4.58757712,2021.3,2021.0,4.94781]
[1742392713231,4.58757712,2021.1,2020.9,9.89644]
[1742392713431,4.58757712,2021.1,2020.9,4.94816]
[1742392713583,4.58757712,2021.1,2020.9,4.94807]
[1742392713784,4.58757712,2021.1,2021.0,4.94804]
[1742392714587,0.8252,2021.4,2021.2,4.94733]
[1742392714886,4.58757712,2021.3,2021.1,4.94766]
[1742392715087,4.58757712,2021.3,2021.0,7.94793]
[1742392715296,4.58757712,2021.1,2021.0,3.0]
[1742392715683,4.58757712,2021.1,2021.0,7.94804]
[1742392715886,4.58757712,2021.3,2021.1,4.94756]
[1742392716114,4.58757712,2021.3,2021.2,4.94755]
[1742392716322,4.58757712,2021.3,2021.1,9.89523]
[1742392716518,4.58757712,2021.3,2021.1,4.94756]
[1742392716939,5.87434686,2021.3,2021.1,4.94756]
[1742392717429,5.87434686,2021.3,2021.0,7.94784]
[1742392717635,4.58757712,2021.1,2021.0,7.94784]
[1742392717872,4.58757712,2021.1,2021.0,12.89572]
[1742392717990,4.58757712,2021.1,2021.0,7.94784]
[1742392719037,4.58757712,2021.3,2021.1,4.9477]
[1742392719192,4.58757712,2021.3,2021.1,4.9476]
[1742392719607,4.58757712,2021.3,2021.1,4.94763]
[1742392720202,6.36905786,2021.3,2021.1,4.94763]
[1742392720932,6.36905786,2021.3,2021.0,7.94791]
[1742392721237,4.58757712,2021.1,2021.0,4.94788]
[1742392721417,4.58757712,2021.1,2020.8,4.94837]
[1742392721641,4.58757712,2021.1,2020.9,4.94826]
[1742392721829,5.22448291,2021.1,2020.9,4.94826]
[1742392722118,5.22448291,2021.1,2020.8,4.94837]
[1742392722326,5.22448291,2021.1,2020.8,4.94847]
[1742392722519,5.22448291,2021.1,2020.8,4.94833]
[1742392722725,4.58757712,2020.9,2020.8,4.94833]
[1742392722923,4.58757712,2020.9,2020.6,5.7954]
[1742392723098,0.52244829,2020.9,2020.7,7.94871]
[1742392723420,4.58757712,2020.8,2020.7,7.94871]
[1742392723623,4.58757712,2020.8,2020.7,3.0]
[1742392724622,4.58757712,2020.8,2020.6,7.94885]
[1742392725329,4.58757712,2020.8,2020.7,4.94878]
[1742392725701,4.58757712,2020.9,2020.8,4.9483]
[1742392725906,4.58757712,2021.1,2020.9,4.9481]
[1742392726102,4.58757712,2021.1,2021.0,4.94804]
[1742392726319,1.1313273,2021.4,2021.1,4.94757]
[1742392726499,5.74389685,2021.3,2021.1,4.94757]
[1742392727001,5.74389685,2021.3,2021.1,9.89524]
[1742392727214,5.74389685,2021.3,2021.2,4.94755]
[1742392728224,4.58757712,2021.3,2021.2,4.94755]
[1742392729046,17.8642,2021.7,2021.5,4.94672]
[1742392729327,4.58757712,2021.6,2021.4,4.94705]
[1742392729918,0.7964,2021.5,2021.1,4.94758]
[1742392730122,4.58757712,2021.2,2021.1,4.94758]
[1742392730535,4.58757712,2021.4,2021.3,4.9473]
[1742392730723,6.16903383,2021.4,2021.3,4.9473]
[1742392731127,6.16903383,2021.4,2021.1,4.94758]
[1742392731328,4.58757712,2021.2,2021.1,9.89521]
[1742392732137,0.7964,2021.5,2021.3,4.94731]
[1742392732138,4.58757712,2021.4,2021.3,4.94731]
[1742392733008,4.58757712,2021.4,2021.2,4.94747]
[1742392733638,4.58757712,2021.4,2021.1,4.94778]
[1742392733841,4.58757712,2021.4,2021.2,4.94747]
[1742392734023,4.58757712,2021.4,2021.1,4.94778]
[1742392734024,4.58757712,2021.3,2021.1,4.94771]
[1742392734218,4.58757712,2021.3,2020.9,7.94826]
[1742392734419,4.58757712,2021.1,2021.0,7.94804]
[1742392735240,5.34777712,2021.1,2020.8,4.94853]
[1742392735434,4.58757712,2020.9,2020.8,4.94844]
[1742392737041,9.89713,2020.7,2020.6,12.89783]
[1742392737230,4.58757712,2020.8,2020.7,4.94861]
[1742392737840,4.58757712,2020.8,2020.6,7.94893]
[1742392738150,6.03597383,2020.8,2020.7,4.94878]
[1742392738316,4.58757712,2020.8,2020.7,4.94878]
[1742392738515,4.58757712,2020.8,2020.6,7.94885]
[1742392739167,4.58757712,2020.8,2020.6,12.89771]
[1742392739758,4.58757712,2020.8,2020.7,4.94878]
[1742392740425,4.58757712,2021.0,2020.8,4.94836]
[1742392740828,4.58757712,2021.0,2020.8,9.89679]
[1742392741150,4.58757712,2021.0,2020.8,4.94836]
[1742392741347,4.94762,2021.2,2020.8,4.94836]
[1742392741348,4.58757712,2021.2,2020.8,4.94836]
[1742392741531,5.35407712,2021.3,2021.1,4.9478]
[1742392741727,5.7209883,2021.3,2021.1,4.9478]
[1742392742054,4.58757712,2021.3,2021.2,4.94755]
[1742392742225,0.765,2021.5,2021.3,4.94726]
[1742392742226,4.58757712,2021.4,2021.3,4.94726]
[1742392742544,17.869,2021.7,2021.4,4.94706]
[1742392742749,17.869,2021.7,2021.3,4.94726]
[1742392742750,4.58757712,2021.4,2021.3,4.94726]
[1742392743619,5.04633483,2021.4,2021.1,4.94768]
[1742392743825,4.58757712,2021.2,2021.1,4.94768]
[1742392744215,4.58757712,2021.2,2021.0,4.94796]
[1742392744420,9.53530712,2021.2,2020.5,3.3094]
[1742392744620,4.58757712,2020.8,2020.7,4.94878]
[1742392745322,5.04633483,2020.8,2020.5,0.3094]
[1742392745650,4.58757712,2020.6,2020.5,4.94924]
[1742392746646,4.58757712,2020.6,2020.3,4.94973]
[1742392746647,9.89864,2020.4,2020.3,4.94973]
[1742392746852,4.58757712,2020.6,2020.3,4.94973]
[1742392747057,4.58757712,2020.4,2020.3,3.0]
[1742392747239,4.58757712,2020.4,2020.2,4.94983]
[1742392747618,4.58757712,2020.4,2020.1,4.95024]
[1742392747821,4.58757712,2020.2,2020.1,4.95024]
[1742392748021,4.58757712,2020.2,2019.9,5.25997]
[1742392748275,4.58757712,2020.0,2019.7,0.3094]
[1742392748567,4.58757712,2019.8,2019.7,4.95107]
[1742392748722,4.58757712,2020.0,2019.8,4.95079]
[1742392749137,4.58757712,2020.0,2019.9,4.95074]
[1742392750250,4.58757712,2020.2,2019.9,4.95061]
[1742392750624,4.58757712,2020.0,2019.9,4.95061]
[1742392751055,4.58757712,2020.0,2019.6,3.55]
[1742392751228,4.58757712,2019.8,2019.7,7.95108]
[1742392751550,4.58757712,2020.1,2019.7,3.0]
[1742392751743,5.78841237,2020.1,2019.8,4.95074]
[1742392751935,4.58757712,2020.1,2019.9,4.95073]
[1742392752337,4.58757712,2020.1,2020.0,4.95049]
[1742392752950,4.58757712,2020.1,2019.9,4.95063]
[1742392753329,4.58757712,2020.1,2020.0,4.95049]
[1742392753531,4.58757712,2020.1,2019.9,4.95054]
[1742392753532,4.95049,2020.0,2019.8,4.95097]
[1742392753729,4.58757712,2019.9,2019.7,12.9022]
[1742392753929,4.58757712,2019.9,2019.7,7.95103]
[1742392754128,4.95001,2020.2,2019.9,4.95073]
[1742392754129,4.58757712,2020.1,2019.9,4.95073]
[1742392754370,4.58757712,2020.1,2020.0,4.95049]
[1742392755630,4.58757712,2020.1,2019.9,4.95073]
[1742392756355,4.58757712,2020.1,2020.0,4.95049]
[1742392756526,7.05843249,2020.3,2020.1,4.95009]
[1742392756730,1.70935537,2020.3,2020.2,4.95]
[1742392756927,4.58757712,2020.3,2020.1,4.9502]
[1742392758058,4.58757712,2020.3,2019.9,4.95069]
[1742392758363,4.58757712,2020.1,2020.0,4.95049]
[1742392759647,4.58757712,2020.3,2020.1,4.95012]
[1742392759956,5.654226,2020.3,2020.0,4.95049]
[1742392760156,5.654226,2020.3,2020.0,9.90088]
[1742392760457,5.42047712,2020.1,2019.8,4.95083]
[1742392760659,4.58757712,2019.9,2019.8,4.95083]
[1742392760836,6.481726,2020.3,2020.0,4.95035]
[1742392761159,1.17970198,2020.2,2020.0,4.95037]
[1742392761360,4.95037,2020.0,2019.9,4.95072]
[1742392761532,4.58757712,2020.4,2020.2,4.95]
[1742392761927,4.58757712,2020.4,2020.2,9.89983]
[1742392762152,4.58757712,2020.4,2020.3,4.94975]
[1742392762458,4.58757712,2020.4,2020.2,9.89976]
[1742392762647,5.62099083,2020.4,2020.2,4.94983]
[1742392762847,1.00404833,2020.8,2020.4,4.94938]
[1742392763079,4.58757712,2020.6,2020.5,4.94926]
[1742392763375,4.58757712,2020.6,2020.3,12.89918]
[1742392763593,4.58757712,2020.6,2020.5,4.94926]
[1742392764248,4.58757712,2020.8,2020.7,4.94878]
[1742392768207,0.8113,2021.1,2021.0,4.94804]
[1742392768502,4.58757712,2021.2,2020.9,4.94826]
[1742392768703,4.58757712,2021.0,2020.9,4.94826]
[1742392769774,4.58757712,2021.0,2020.9,4.94829]
[1742392770174,4.58757712,2021.2,2020.9,4.94813]
[1742392770491,21.70357712,2021.4,2021.2,4.94755]
[1742392770695,21.70357712,2021.4,2021.2,4.94744]
[1742392770853,4.58757712,2021.6,2021.5,4.94682]
[1742392771055,10.07072483,2021.6,2021.2,4.94743]
[1742392771254,4.58757712,2021.3,2021.2,4.94743]
[1742392772210,4.94977,2020.3,2020.0,0.3094]
[1742392772353,0.7561,2020.5,2020.1,4.95009]
[1742392772556,6.35976021,2020.8,2020.4,4.94943]
[1742392772755,5.34367712,2020.8,2020.2,3.0]
[1742392772983,5.34367712,2020.8,2020.4,4.94928]
[1742392773188,5.34367712,2020.8,2020.5,7.99874941]
[1742392773389,4.58757712,2020.8,2020.5,3.0]
[1742392773686,4.58757712,2020.8,2020.5,7.94904]
[1742392773858,4.58757712,2020.8,2020.5,3.0]
[1742392774591,4.58757712,2020.8,2020.5,7.94926]
[1742392774793,4.58757712,2020.8,2020.5,3.0]
[1742392775790,5.62051383,2020.8,2020.5,3.0]
[1742392776292,4.58757712,2020.8,2020.5,3.0]
[1742392776474,9.53614712,2020.8,2020.5,3.0]
[1742392776676,4.95434365,2020.8,2020.5,3.0]
[1742392776989,5.38127712,2021.0,2020.6,4.94897]
[1742392777156,4.58757712,2021.2,2020.7,4.94856]
[1742392777359,4.58757712,2021.2,2020.9,3.0]
[1742392777586,4.58757712,2021.0,2020.8,3.0]
[1742392778305,5.41197712,2021.0,2020.8,3.0]
[1742392778487,4.94867,2020.8,2020.4,3.0]
[1742392778676,5.41197712,2021.0,2020.2,0.3094]
[1742392778677,4.58757712,2020.6,2020.2,0.3094]
[1742392778881,4.58757712,2020.4,2020.0,0.3094]
[1742392779405,4.58757712,2020.4,2020.0,3.3094]
[1742392780103,4.58757712,2020.4,2020.1,4.95023]
[1742392780305,5.41197712,2020.6,2020.2,4.94999]
[1742392780601,5.78056669,2020.6,2020.1,4.95023]
[1742392780805,4.58757712,2020.4,2020.1,4.95011]
[1742392781270,4.58757712,2020.4,2020.1,4.95021]
[1742392781469,4.58757712,2020.4,2020.0,8.25985]
[1742392781695,4.58757712,2020.4,2020.0,7.95045]
[1742392782003,5.38947712,2020.2,2019.9,13.42273]
[1742392782207,4.58757712,2020.2,2020.0,4.95049]
[1742392782504,0.8019,2020.9,2020.6,4.94884]
[1742392782706,4.96127292,2021.1,2020.7,4.94865]
[1742392783010,4.58757712,2021.1,2020.7,4.94865]
[1742392783177,6.2664417,2021.1,2020.7,4.94865]
[1742392784805,4.58757712,2020.9,2020.6,8.49902]
[1742392785009,4.58757712,2020.9,2020.6,7.94901]
[1742392785676,4.58757712,2020.9,2020.7,4.99816252]
[1742392785974,4.58757712,2021.1,2020.8,4.94853]
[1742392786273,0.7767,2021.2,2020.8,4.94832]
[1742392786473,4.58757712,2021.3,2021.0,4.94799]
[1742392786669,4.58757712,2021.3,2021.1,4.9477]
[1742392786905,0.53655771,2021.6,2021.2,7.94755]
[1742392786906,4.58757712,2021.5,2021.2,7.94755]
[1742392787327,4.58757712,2021.5,2021.3,4.94728]
[1742392787485,4.58757712,2021.5,2021.3,4.94712]
[1742392787671,4.58757712,2021.7,2021.3,5.25658]
[1742392787877,4.58757712,2021.7,2021.4,4.94697]
[1742392788073,4.58757712,2021.7,2021.5,4.94682]
[1742392788480,4.58757712,2021.7,2021.4,4.94699]
[1742392788717,4.58757712,2021.5,2021.4,4.94699]
[1742392789910,4.58757712,2021.5,2021.3,5.2567]
[1742392790298,4.58757712,2021.5,2021.3,5.25654]
[1742392790497,4.58757712,2021.5,2021.4,4.94706]
[1742392791417,0.8313,2021.8,2021.4,4.94706]
[1742392791710,22.42581997,2021.9,2021.4,4.94706]
[1742392791711,5.35067712,2022.3,2021.7,3.0]
[1742392791920,4.58757712,2022.1,2021.8,13.41491]
[1742392792133,4.58757712,2022.1,2021.9,4.94574]
[1742392793114,4.58757712,2022.1,2022.0,4.94559]
[1742392793330,4.58757712,2022.2,2021.8,7.94606]
[1742392793510,5.38057712,2021.9,2021.6,10.41445]
[1742392793814,5.38057712,2021.9,2021.6,15.36091]
[1742392793997,4.58757712,2021.9,2021.7,4.94632]
[1742392794588,4.58757712,2021.9,2021.6,10.4145]
[1742392795204,4.58757712,2021.7,2021.5,3.0]
[1742392795514,5.35697712,2021.7,2021.5,3.0]
[1742392795718,10.30341712,2021.7,2021.5,3.0]
[1742392796494,10.30341712,2021.7,2021.3,10.4153]
[1742392796697,4.58757712,2021.5,2021.0,0.3094]
[1742392796885,4.58757712,2021.5,2021.2,4.94755]
[1742392797287,4.58757712,2021.5,2021.2,4.94739]
[1742392797487,6.11256983,2021.5,2021.1,7.94773]
[1742392797700,4.58757712,2021.3,2021.1,3.0]
[1742392797915,4.58757712,2021.3,2021.1,7.94779]
[1742392798120,4.58757712,2021.3,2021.1,12.89544]
[1742392798315,4.58757712,2021.5,2021.2,4.94755]
[1742392798516,4.58757712,2021.5,2021.3,4.94729]
[1742392798683,4.58757712,2021.5,2021.2,4.94748]
[1742392798891,4.58757712,2021.3,2021.1,3.0]
[1742392799085,4.9476,2021.2,2020.7,4.94858]
[1742392799406,4.58757712,2021.0,2020.9,3.0]
[1742392799595,4.58757712,2021.0,2020.9,7.94829]
[1742392799918,4.58757712,2021.2,2021.0,4.94788]
[1742392800118,4.58757712,2021.4,2021.2,4.94754]
[1742392800342,4.58757712,2021.6,2021.3,7.94731]
[1742392800621,4.58757712,2021.7,2021.5,3.0]
[1742392800824,3.0,2021.5,2021.4,7.94688]
[1742392800990,5.70338,2021.9,2021.8,4.94608]
[1742392800991,5.34497712,2021.9,2021.8,4.94608]
[1742392801200,4.58757712,2022.1,2021.8,4.94608]
[1742392801533,4.58757712,2022.1,2021.9,4.9457]
[1742392801822,4.58757712,2022.3,2022.1,4.9452]
[1742392802029,4.9452,2022.1,2022.0,7.9455]
[1742392802225,22.50697712,2022.7,2022.3,4.94481]
[1742392802428,4.58757712,2022.4,2022.1,13.19972]
[1742392802720,7.21849869,2022.7,2022.1,3.0]
[1742392802721,4.94438,2022.5,2022.1,3.0]
[1742392802923,4.94438,2022.5,2022.0,5.466]
[1742392803130,1.18481192,2022.7,2022.2,4.9449]
[1742392803320,4.58757712,2022.5,2022.2,4.94498]
[1742392803500,4.58757712,2022.5,2022.3,4.94482]
[1742392803697,4.58757712,2022.5,2022.2,9.89009]
[1742392804097,4.58757712,2022.5,2022.2,4.94499]
[1742392804346,4.58757712,2022.7,2022.5,4.9443]
[1742392804709,4.58757712,2022.7,2022.5,4.94434]
[1742392804936,4.58757712,2022.7,2022.6,4.94413]
[1742392805098,4.58757712,2022.9,2022.6,4.94394]
[1742392805304,4.58757712,2022.9,2022.7,4.993165]
[1742392805526,4.58757712,2022.9,2022.5,4.94413]
[1742392805734,4.58757712,2022.9,2022.6,4.94397]
[1742392806035,4.58757712,2023.3,2023.1,4.94274]
[1742392806239,4.58757712,2023.4,2023.1,4.94274]
[1742392806421,4.58757712,2023.6,2023.2,4.94261]
[1742392806743,4.58757712,2023.5,2023.3,4.94239]
[1742392806902,4.58757712,2023.5,2023.1,5.25218]
[1742392807103,4.58757712,2023.3,2022.9,4.94315]
[1742392807328,4.58757712,2023.1,2022.8,5.25289]
[1742392807504,4.58757712,2023.1,2022.8,0.3094]
[1742392807706,4.58757712,2022.9,2022.7,9.8875]
[1742392808022,4.58757712,2022.9,2022.7,3.0]
[1742392808236,4.58757712,2022.9,2022.3,5.463]
[1742392808237,3.35914,2022.6,2022.3,5.463]
[1742392808417,0.8171,2023.2,2022.3,10.40766]
[1742392808418,4.58757712,2022.7,2022.3,10.40766]
[1742392808617,4.58757712,2022.7,2022.4,4.94452]
[1742392808820,4.9434,2022.9,2022.4,4.94452]
[1742392808821,4.58757712,2022.9,2022.5,7.94426]
[1742392809015,4.58757712,2023.1,2022.8,4.94361]
[1742392809215,4.58757712,2023.1,2022.5,3.3094]
[1742392809216,9.53106712,2022.9,2022.5,3.3094]
[1742392809415,4.9432,2023.0,2022.3,10.9577]
[1742392809416,4.58757712,2022.7,2022.3,0.3094]
[1742392809712,4.58757712,2022.5,2021.8,0.3094]
[1742392809918,4.58757712,2022.3,2022.0,4.94555]
[1742392810151,4.58757712,2022.5,2022.2,4.94509]
[1742392810321,4.58757712,2022.5,2022.1,4.94523]
[1742392810518,4.58757712,2022.5,2022.2,4.94508]
[1742392810744,4.94391,2022.7,2022.3,4.94484]
[1742392810745,4.58757712,2022.7,2022.3,4.94484]
[1742392811051,4.58757712,2022.5,2022.1,0.55]
[1742392811256,4.58757712,2022.3,2021.9,4.94583]
[1742392811551,4.58757712,2022.3,2022.0,7.94556]
[1742392811733,4.58757712,2022.5,2021.9,0.55]
[1742392811927,4.58757712,2022.5,2022.1,4.94513]
[1742392812128,4.58757712,2022.5,2022.2,4.945]
[1742392812526,9.53201712,2022.5,2022.1,4.94513]
[1742392812731,4.58757712,2022.3,2021.9,9.89134]
[1742392812933,4.58757712,2022.3,2022.0,4.94558]
[1742392813150,4.58757712,2022.3,2022.0,3.0]
[1742392813335,3.0,2022.0,2021.6,5.462]
[1742392813549,4.58757712,2021.7,2021.4,0.3094]